fUST/lending_fUST_20260621
["ID","MTS","AMOUNT","RATE_DAILY","PERIOD"]
[425845949,1781985038000,-164.74,0.00017957,2]
[425845954,1781985038000,-892.87,0.00018442,2]
[425845951,1781985038000,-169.3156154,0.00017975,2]
[425845947,1781985038000,-1000.0,0.00017957,2]
[425845944,1781985038000,-186.0,0.00017842,2]
[425845945,1781985038000,-445.0,0.00017842,2]
[425845952,1781985038000,-1999.5465658,0.00017975,2]
[425845974,1781985043000,-4005.48424801,0.00018575,2]
[425845995,1781985046000,-545.63529608,0.00018575,2]
[425846463,1781985264000,156.10915149,0.00022974,110]
[425846464,1781985265000,866.34330383,0.00022974,120]
[425846465,1781985265000,304.94970711,0.00022974,120]
[425846470,1781985265000,304.94970711,0.00022974,120]
[425846468,1781985265000,304.94970711,0.00022974,120]
[425846469,1781985265000,866.34330383,0.00022974,120]
[425846467,1781985265000,866.34330383,0.00022974,120]
[425846472,1781985266000,304.94970711,0.00022974,120]
[425846471,1781985266000,866.34330383,0.00022974,120]
[425846474,1781985266000,304.94970711,0.00022974,120]
[425846473,1781985266000,866.34330383,0.00022974,120]
[425846476,1781985266000,304.94970711,0.00022974,120]
[425846477,1781985266000,866.34330383,0.00022974,120]
[425846478,1781985266000,304.94970711,0.00022974,120]
[425846475,1781985266000,866.34330383,0.00022974,120]
[425846480,1781985267000,304.94970711,0.00022974,120]
[425846482,1781985267000,866.34330383,0.00022974,120]
[425846481,1781985267000,866.34330383,0.00022974,120]
[425846479,1781985267000,866.34330383,0.00022974,120]
[425846485,1781985268000,866.34330383,0.00022974,120]
[425846484,1781985268000,866.34330383,0.00022974,120]
[425846483,1781985268000,866.34330383,0.00022974,120]
[425846489,1781985269000,866.34330383,0.00022974,120]
[425846488,1781985269000,866.34330383,0.00022974,120]
[425846487,1781985269000,866.34330383,0.00022974,120]
[425846486,1781985269000,866.34330383,0.00022974,120]
[425846490,1781985270000,866.34330383,0.00022974,120]
[425846491,1781985270000,866.34330383,0.00022974,120]
[425846492,1781985270000,866.34330383,0.00022974,120]
[425846495,1781985271000,866.34330383,0.00022974,120]
[425846494,1781985271000,866.34330383,0.00022974,120]
[425846493,1781985271000,866.34330383,0.00022974,120]
[425846498,1781985272000,866.34330383,0.00022974,120]
[425846497,1781985272000,866.34330383,0.00022974,120]
[425846496,1781985272000,866.34330383,0.00022974,120]
[425846500,1781985273000,866.34330383,0.00022974,120]
[425846499,1781985273000,866.34330383,0.00022974,120]
[425846502,1781985274000,866.34330383,0.00022974,120]
[425846501,1781985274000,866.34330383,0.00022974,120]
[425846504,1781985385000,156.10915148,0.00022974,110]
[425846506,1781985460000,12015.68892349,7.6e-05,2]
[425846507,1781985464000,7047.91546254,0.0001,2]
[425846558,1781986232000,-3986.03107893,0.000115,2]
[425846566,1781986232000,-447.14637119,0.000115,2]
[425846702,1781986238000,-500.0,0.00016129,2]
[425846671,1781986238000,-500.0,0.00015959,2]
[425846670,1781986238000,-500.0,0.00015959,2]
[425846668,1781986238000,-500.0,0.00015959,2]
[425846665,1781986238000,-500.0,0.00015959,2]
[425846673,1781986238000,-500.0,0.00015959,2]
[425846672,1781986238000,-500.0,0.00015959,2]
[425846666,1781986238000,-500.0,0.00015959,2]
[425846667,1781986238000,-500.0,0.00015959,2]
[425846663,1781986238000,-500.0,0.00015959,2]
[425846664,1781986238000,-500.0,0.00015959,2]
[425846662,1781986238000,-611.6903096,0.00015959,2]
[425846661,1781986238000,-500.0,0.00015959,2]
[425846660,1781986238000,-500.0,0.00015959,2]
[425846655,1781986238000,-3006.576412,0.000159,2]
[425846653,1781986238000,-185.415433,0.00015035,2]
[425846657,1781986238000,-468.80446551,0.00015959,2]
[425846656,1781986238000,-178.82321585,0.0001591,2]
[425846658,1781986238000,-500.0,0.00015959,2]
[425846652,1781986238000,-433.45811007,0.00013,2]
[425846651,1781986238000,-2888.86565018,0.00012,2]
[425846659,1781986238000,-155.70526643,0.00015959,2]
[425846654,1781986238000,-250.0,0.00015195,2]
[425846650,1781986238000,-1158.09614691,0.00012,2]
[425846649,1781986238000,-893.29971261,0.000115,2]
[425846675,1781986238000,-500.0,0.00015959,2]
[425846676,1781986238000,-500.0,0.00015959,2]
[425846674,1781986238000,-530.36175156,0.00015959,2]
[425846681,1781986238000,-1353.2566887,0.0001596,2]
[425846703,1781986238000,-217.90570278,0.00016129,2]
[425846704,1781986238000,-1118.34218739,0.0001613,2]
[425846701,1781986238000,-482.66231779,0.0001612,2]
[425846700,1781986238000,-2517.33768221,0.0001612,2]
[425846699,1781986238000,-3000.0,0.0001611,2]
[425846696,1781986238000,-3000.0,0.0001608,2]
[425846697,1781986238000,-3000.0,0.0001609,2]
[425846694,1781986238000,-1658.09234939,0.0001606,2]
[425846693,1781986238000,-1341.90765061,0.0001606,2]
[425846695,1781986238000,-3000.0,0.0001607,2]
[425846684,1781986238000,-6445.93638662,0.00016,2]
[425846698,1781986238000,-3000.0,0.000161,2]
[425846690,1781986238000,-556.06000188,0.0001604,2]
[425846689,1781986238000,-2443.93999812,0.0001604,2]
[425846677,1781986238000,-500.0,0.00015959,2]
[425846686,1781986238000,-500.0,0.00016019,2]
[425846678,1781986238000,-500.0,0.00015959,2]
[425846692,1781986238000,-500.0,0.00016059,2]
[425846679,1781986238000,-500.0,0.00015959,2]
[425846680,1781986238000,-500.0,0.00015959,2]
[425846685,1781986238000,-3000.0,0.0001601,2]
[425846683,1781986238000,-3000.0,0.00016,2]
[425846687,1781986238000,-3000.0,0.0001602,2]
[425846688,1781986238000,-3000.0,0.0001603,2]
[425846691,1781986238000,-3000.0,0.0001605,2]
[425846682,1781986238000,-17015.73416888,0.0001596,2]
[425846706,1781986240000,-500.0,0.00016019,2]
[425846707,1781986240000,-500.0,0.00016078,2]
[425846709,1781986240000,-190.18320407,0.00016109,2]
[425846708,1781986240000,-309.81679593,0.00016109,2]
[425846712,1781986240000,-3000.0,0.0001615,2]
[425846713,1781986240000,-151.0,0.0001615,2]
[425846715,1781986240000,-3000.0,0.0001616,2]
[425846710,1781986240000,-1881.65781261,0.0001613,2]
[425846714,1781986240000,-151.0,0.0001615,2]
[425846716,1781986240000,-2045.12773806,0.0001617,2]
[425846711,1781986240000,-3000.0,0.0001614,2]
[425846725,1781986243000,-2753.05205648,0.000162,2]
[425846722,1781986243000,-500.0,0.00016179,2]
[425846724,1781986243000,-3000.0,0.0001619,2]
[425846723,1781986243000,-3000.0,0.0001618,2]
[425846721,1781986243000,-123.94700852,0.0001617,2]
[425846720,1781986243000,-830.92525342,0.0001617,2]
[425846731,1781986248000,-246.94794352,0.000162,2]
[425846733,1781986248000,-3000.0,0.0001622,2]
[425846734,1781986248000,-3000.0,0.0001623,2]
[425846732,1781986248000,-3000.0,0.0001621,2]
[425846767,1781986249000,-706.85,0.00017534,2]
[425846758,1781986249000,-500.0,0.00016999,2]
[425846756,1781986249000,-500.0,0.00016999,2]
[425846760,1781986249000,-26285.05133149,0.00017,2]
[425846754,1781986249000,-706.85,0.00016986,2]
[425846755,1781986249000,-500.0,0.00016999,2]
[425846763,1781986249000,-178.82321581,0.00017103,2]
[425846765,1781986249000,-178.82321581,0.000175,2]
[425846768,1781986249000,-3006.57641198,0.00017579,2]
[425846775,1781986249000,-160.0,0.00017954,2]
[425846772,1781986249000,-445.0,0.00017842,2]
[425846766,1781986249000,-500.0,0.00017532,2]
[425846770,1781986249000,-1004.0,0.00017792,2]
[425846769,1781986249000,-2173.56436618,0.000176,2]
[425846773,1781986249000,-186.0,0.00017842,2]
[425846764,1781986249000,-706.85,0.0001726,2]
[425846759,1781986249000,-500.0,0.00016999,2]
[425846774,1781986249000,-174.68,0.00017899,2]
[425846785,1781986249000,-160.0,0.00018061,2]
[425846771,1781986249000,-706.85,0.00017808,2]
[425846752,1781986249000,-706.85,0.00016712,2]
[425846745,1781986249000,-500.0,0.00016309,2]
[425846757,1781986249000,-500.0,0.00016999,2]
[425846737,1781986249000,-500.0,0.00016249,2]
[425846739,1781986249000,-3000.0,0.0001626,2]
[425846735,1781986249000,-3000.0,0.0001624,2]
[425846736,1781986249000,-151.0,0.0001624,2]
[425846738,1781986249000,-3000.0,0.0001625,2]
[425846740,1781986249000,-3000.0,0.0001627,2]
[425846749,1781986249000,-4696.362357,0.0001634,2]
[425846742,1781986249000,-3000.0,0.0001629,2]
[425846750,1781986249000,-706.85,0.00016438,2]
[425846744,1781986249000,-178.82321581,0.00016308,2]
[425846747,1781986249000,-3000.0,0.0001632,2]
[425846751,1781986249000,-178.82321581,0.00016705,2]
[425846748,1781986249000,-3000.0,0.0001633,2]
[425846741,1781986249000,-3000.0,0.0001628,2]
[425846786,1781986249000,-160.0,0.00018061,2]
[425846746,1781986249000,-3000.0,0.0001631,2]
[425846743,1781986249000,-3000.0,0.000163,2]
[425846762,1781986249000,-76698.95575285,0.00017,2]
[425846761,1781986249000,-501.0,0.00017,2]
[425846753,1781986249000,-3006.57641198,0.00016739,2]
[425846776,1781986249000,-160.0,0.00017954,2]
[425846779,1781986249000,-1000.0,0.00017999,2]
[425846802,1781986249000,-1094.31820797,0.00018603,2]
[425846808,1781986249000,-190.52224417,0.00018603,2]
[425846807,1781986249000,-185.83850424,0.00018603,2]
[425846784,1781986249000,-160.0,0.00018061,2]
[425846804,1781986249000,-192.29748575,0.00018603,2]
[425846803,1781986249000,-590.56620375,0.00018603,2]
[425846800,1781986249000,-159.81911756,0.00018603,2]
[425846806,1781986249000,-326.73106804,0.00018603,2]
[425846810,1781986249000,-176.19219914,0.00018603,2]
[425846813,1781986249000,-195.10336493,0.00018603,2]
[425846814,1781986249000,-185.33936521,0.00018603,2]
[425846815,1781986249000,-151.63010045,0.00018603,2]
[425846816,1781986249000,-356.19453214,0.00018603,2]
[425846817,1781986249000,-176.37061717,0.00018603,2]
[425846824,1781986249000,-173.231162,0.0001862,2]
[425846818,1781986249000,-162.32172799,0.00018603,2]
[425846819,1781986249000,-203.21368499,0.00018603,2]
[425846820,1781986249000,-210.968871,0.0001862,2]
[425846823,1781986249000,-253.771237,0.0001862,2]
[425846821,1781986249000,-166.856127,0.0001862,2]
[425846812,1781986249000,-199.19599001,0.00018603,2]
[425846805,1781986249000,-1461.75901923,0.00018603,2]
[425846811,1781986249000,-170.93701481,0.00018603,2]
[425846801,1781986249000,-160.35576716,0.00018603,2]
[425846783,1781986249000,-4736.97199863,0.0001805,2]
[425846781,1781986249000,-1000.0,0.00018,2]
[425846782,1781986249000,-1000.0,0.00018,2]
[425846777,1781986249000,-417.15472785,0.00017954,2]
[425846778,1781986249000,-1000.0,0.00017957,2]
[425846780,1781986249000,-201.28572595,0.00018,2]
[425846787,1781986249000,-160.0,0.00018061,2]
[425846788,1781986249000,-160.0,0.00018061,2]
[425846809,1781986249000,-170.44703456,0.00018603,2]
[425846790,1781986249000,-160.0,0.00018061,2]
[425846792,1781986249000,-706.85,0.00018082,2]
[425846789,1781986249000,-160.0,0.00018061,2]
[425846796,1781986249000,-197.89679989,0.00018603,2]
[425846791,1781986249000,-160.0,0.00018061,2]
[425846793,1781986249000,-706.85,0.00018356,2]
[425846798,1781986249000,-183.83320227,0.00018603,2]
[425846797,1781986249000,-155.10157866,0.00018603,2]
[425846794,1781986249000,-3006.57641198,0.00018418,2]
[425846795,1781986249000,-303.89054837,0.00018603,2]
[425846799,1781986249000,-165.6478772,0.00018603,2]
[425846921,1781987438000,-500.0,0.00015798,2]
[425846917,1781987438000,-500.0,0.00015798,2]
[425846916,1781987438000,-397.72639487,0.00015798,2]
[425846912,1781987438000,-500.0,0.00015798,2]
[425846910,1781987438000,-500.0,0.00015798,2]
[425846919,1781987438000,-500.0,0.00015798,2]
[425846909,1781987438000,-500.0,0.00015798,2]
[425846907,1781987438000,-1568.99707588,0.00015698,2]
[425846908,1781987438000,-500.0,0.00015798,2]
[425846906,1781987438000,-294.69058029,0.00015698,2]
[425846911,1781987438000,-500.0,0.00015798,2]
[425846913,1781987438000,-500.0,0.00015798,2]
[425846928,1781987438000,-500.0,0.00015798,2]
[425846915,1781987438000,-500.0,0.00015798,2]
[425846929,1781987438000,-500.0,0.00015798,2]
[425846930,1781987438000,-500.0,0.00015798,2]
[425846927,1781987438000,-500.0,0.00015798,2]
[425846924,1781987438000,-500.0,0.00015798,2]
[425846925,1781987438000,-500.0,0.00015798,2]
[425846923,1781987438000,-500.0,0.00015798,2]
[425846922,1781987438000,-500.0,0.00015798,2]
[425846918,1781987438000,-500.0,0.00015798,2]
[425846914,1781987438000,-500.0,0.00015798,2]
[425846926,1781987438000,-500.0,0.00015798,2]
[425846920,1781987438000,-500.0,0.00015798,2]
[425846932,1781987439000,-500.0,0.00015798,2]
[425846931,1781987439000,-500.0,0.00015798,2]
[425846933,1781987439000,-72944.45848615,0.000158,2]
[425846940,1781987441000,-311.991456,0.000158,2]
[425846938,1781987441000,-524.5156047,0.000158,2]
[425846939,1781987441000,-304.0,0.000158,2]
[425846956,1781987443000,-385.92004033,0.000158,2]
[425846955,1781987443000,-1028.85686,0.000158,2]
[425846954,1781987443000,-12095.90872,0.000158,2]
[425846984,1781987446000,-11847.57843492,0.000158,2]
[425847030,1781988632000,-123.33085704,0.00013618,2]
[425847029,1781988632000,-818.24179826,0.00013618,2]
[425847031,1781988632000,-310.12725303,0.00013771,2]
[425847093,1781988638000,-250.0,0.00014131,2]
[425847091,1781988638000,-267.7103083,0.00013785,2]
[425847092,1781988638000,-5417.7225286,0.00013895,2]
[425847090,1781988638000,-123.33085707,0.00013771,2]
[425847138,1781988639000,-255.34227632,0.00015595,2]
[425847132,1781988639000,-500.0,0.00015595,2]
[425847134,1781988639000,-500.0,0.00015595,2]
[425847133,1781988639000,-500.0,0.00015595,2]
[425847137,1781988639000,-500.0,0.00015595,2]
[425847128,1781988639000,-500.0,0.00015595,2]
[425847131,1781988639000,-500.0,0.00015595,2]
[425847129,1781988639000,-500.0,0.00015595,2]
[425847130,1781988639000,-500.0,0.00015595,2]
[425847125,1781988639000,-500.0,0.00015595,2]
[425847124,1781988639000,-500.0,0.00015595,2]
[425847135,1781988639000,-500.0,0.00015595,2]
[425847136,1781988639000,-500.0,0.00015595,2]
[425847150,1781988639000,-500.0,0.00015595,2]
[425847139,1781988639000,-500.0,0.00015595,2]
[425847143,1781988639000,-500.0,0.00015595,2]
[425847141,1781988639000,-500.0,0.00015595,2]
[425847142,1781988639000,-500.0,0.00015595,2]
[425847144,1781988639000,-500.0,0.00015595,2]
[425847146,1781988639000,-500.0,0.00015595,2]
[425847148,1781988639000,-500.0,0.00015595,2]
[425847145,1781988639000,-500.0,0.00015595,2]
[425847153,1781988639000,-500.0,0.00015595,2]
[425847149,1781988639000,-500.0,0.00015595,2]
[425847147,1781988639000,-500.0,0.00015595,2]
[425847152,1781988639000,-500.0,0.00015595,2]
[425847127,1781988639000,-500.0,0.00015595,2]
[425847151,1781988639000,-500.0,0.00015595,2]
[425847140,1781988639000,-500.0,0.00015595,2]
[425847120,1781988639000,-498.40546094,0.00015595,2]
[425847111,1781988639000,-500.0,0.00015595,2]
[425847123,1781988639000,-500.0,0.00015595,2]
[425847094,1781988639000,-231.322208,0.00014331,2]
[425847096,1781988639000,-300.0,0.00015495,2]
[425847095,1781988639000,-300.0,0.00014484,2]
[425847100,1781988639000,-500.0,0.00015595,2]
[425847102,1781988639000,-500.0,0.00015595,2]
[425847099,1781988639000,-500.0,0.00015595,2]
[425847098,1781988639000,-328.5730822,0.00015595,2]
[425847097,1781988639000,-3349.27818987,0.00015496,2]
[425847101,1781988639000,-500.0,0.00015595,2]
[425847103,1781988639000,-500.0,0.00015595,2]
[425847105,1781988639000,-500.0,0.00015595,2]
[425847104,1781988639000,-500.0,0.00015595,2]
[425847106,1781988639000,-500.0,0.00015595,2]
[425847126,1781988639000,-500.0,0.00015595,2]
[425847109,1781988639000,-500.0,0.00015595,2]
[425847108,1781988639000,-500.0,0.00015595,2]
[425847110,1781988639000,-500.0,0.00015595,2]
[425847113,1781988639000,-500.0,0.00015595,2]
[425847115,1781988639000,-484.47348622,0.00015595,2]
[425847107,1781988639000,-500.0,0.00015595,2]
[425847114,1781988639000,-500.0,0.00015595,2]
[425847117,1781988639000,-500.0,0.00015595,2]
[425847156,1781988639000,-500.0,0.00015595,2]
[425847116,1781988639000,-500.0,0.00015595,2]
[425847118,1781988639000,-500.0,0.00015595,2]
[425847119,1781988639000,-500.0,0.00015595,2]
[425847122,1781988639000,-500.0,0.00015595,2]
[425847121,1781988639000,-500.0,0.00015595,2]
[425847112,1781988639000,-500.0,0.00015595,2]
[425847155,1781988639000,-500.0,0.00015595,2]
[425847199,1781988639000,-500.0,0.00015595,2]
[425847157,1781988639000,-500.0,0.00015595,2]
[425847188,1781988639000,-500.0,0.00015595,2]
[425847191,1781988639000,-500.0,0.00015595,2]
[425847194,1781988639000,-500.0,0.00015595,2]
[425847192,1781988639000,-222.04505121,0.00015595,2]
[425847193,1781988639000,-500.0,0.00015595,2]
[425847197,1781988639000,-500.0,0.00015595,2]
[425847200,1781988639000,-500.0,0.00015595,2]
[425847195,1781988639000,-500.0,0.00015595,2]
[425847196,1781988639000,-500.0,0.00015595,2]
[425847202,1781988639000,-250.1651622,0.00015595,2]
[425847201,1781988639000,-500.0,0.00015595,2]
[425847198,1781988639000,-500.0,0.00015595,2]
[425847204,1781988639000,-500.0,0.00015595,2]
[425847187,1781988639000,-500.0,0.00015595,2]
[425847207,1781988639000,-500.0,0.00015595,2]
[425847206,1781988639000,-500.0,0.00015595,2]
[425847216,1781988639000,-3451.58409733,0.00015596,2]
[425847214,1781988639000,-197790.13137434,0.00015596,2]
[425847209,1781988639000,-500.0,0.00015595,2]
[425847210,1781988639000,-500.0,0.00015595,2]
[425847212,1781988639000,-500.0,0.00015595,2]
[425847215,1781988639000,-37995.95765769,0.00015596,2]
[425847208,1781988639000,-500.0,0.00015595,2]
[425847213,1781988639000,-46413.61938759,0.00015596,2]
[425847211,1781988639000,-500.0,0.00015595,2]
[425847217,1781988639000,-298.94,0.00015599,2]
[425847218,1781988639000,-500.0,0.00015599,2]
[425847154,1781988639000,-500.0,0.00015595,2]
[425847205,1781988639000,-500.0,0.00015595,2]
[425847183,1781988639000,-500.0,0.00015595,2]
[425847203,1781988639000,-500.0,0.00015595,2]
[425847190,1781988639000,-500.0,0.00015595,2]
[425847165,1781988639000,-500.0,0.00015595,2]
[425847161,1781988639000,-500.0,0.00015595,2]
[425847160,1781988639000,-500.0,0.00015595,2]
[425847164,1781988639000,-500.0,0.00015595,2]
[425847162,1781988639000,-500.0,0.00015595,2]
[425847163,1781988639000,-500.0,0.00015595,2]
[425847158,1781988639000,-500.0,0.00015595,2]
[425847166,1781988639000,-500.0,0.00015595,2]
[425847167,1781988639000,-500.0,0.00015595,2]
[425847169,1781988639000,-500.0,0.00015595,2]
[425847168,1781988639000,-500.0,0.00015595,2]
[425847172,1781988639000,-500.0,0.00015595,2]
[425847170,1781988639000,-500.0,0.00015595,2]
[425847171,1781988639000,-500.0,0.00015595,2]
[425847159,1781988639000,-500.0,0.00015595,2]
[425847175,1781988639000,-500.0,0.00015595,2]
[425847173,1781988639000,-500.0,0.00015595,2]
[425847186,1781988639000,-500.0,0.00015595,2]
[425847182,1781988639000,-500.0,0.00015595,2]
[425847185,1781988639000,-500.0,0.00015595,2]
[425847181,1781988639000,-500.0,0.00015595,2]
[425847189,1781988639000,-500.0,0.00015595,2]
[425847184,1781988639000,-500.0,0.00015595,2]
[425847179,1781988639000,-500.0,0.00015595,2]
[425847178,1781988639000,-500.0,0.00015595,2]
[425847174,1781988639000,-500.0,0.00015595,2]
[425847177,1781988639000,-342.3948702,0.00015595,2]
[425847176,1781988639000,-500.0,0.00015595,2]
[425847180,1781988639000,-501.65162202,0.00015595,2]
[425847258,1781988640000,-300.0,0.00016114,2]
[425847260,1781988640000,-300.0,0.00016114,2]
[425847261,1781988640000,-300.0,0.00016114,2]
[425847257,1781988640000,-300.0,0.00016114,2]
[425847256,1781988640000,-300.0,0.00016114,2]
[425847250,1781988640000,-479.88462939,0.000161,2]
[425847254,1781988640000,-300.0,0.00016114,2]
[425847253,1781988640000,-300.0,0.00016114,2]
[425847251,1781988640000,-300.0,0.00016114,2]
[425847252,1781988640000,-300.0,0.00016114,2]
[425847259,1781988640000,-300.0,0.00016114,2]
[425847255,1781988640000,-300.0,0.00016114,2]
[425847262,1781988640000,-300.0,0.00016114,2]
[425847273,1781988640000,-500.0,0.00016438,2]
[425847264,1781988640000,-300.0,0.00016114,2]
[425847266,1781988640000,-600.0,0.00016114,2]
[425847265,1781988640000,-300.0,0.00016114,2]
[425847267,1781988640000,-479.88462939,0.000162,2]
[425847269,1781988640000,-3349.27818986,0.00016397,2]
[425847274,1781988640000,-500.0,0.00016438,2]
[425847271,1781988640000,-500.0,0.00016437,2]
[425847270,1781988640000,-479.88462939,0.000164,2]
[425847272,1781988640000,-560.83793117,0.00016437,2]
[425847275,1781988640000,-500.0,0.00016438,2]
[425847276,1781988640000,-500.0,0.00016438,2]
[425847277,1781988640000,-500.0,0.00016438,2]
[425847248,1781988640000,-726.551701,0.00016055,2]
[425847263,1781988640000,-300.0,0.00016114,2]
[425847245,1781988640000,-500.0,0.00015974,2]
[425847233,1781988640000,-508.27996584,0.00015799,2]
[425847247,1781988640000,-151.0,0.00015974,2]
[425847219,1781988640000,-500.0,0.00015599,2]
[425847222,1781988640000,-500.0,0.00015696,2]
[425847220,1781988640000,-500.0,0.00015696,2]
[425847221,1781988640000,-500.0,0.00015696,2]
[425847225,1781988640000,-500.0,0.00015699,2]
[425847224,1781988640000,-500.0,0.00015699,2]
[425847223,1781988640000,-211.05077417,0.00015699,2]
[425847226,1781988640000,-151.988666,0.000157,2]
[425847227,1781988640000,-151.0,0.000157,2]
[425847229,1781988640000,-500.0,0.00015797,2]
[425847230,1781988640000,-500.0,0.00015797,2]
[425847228,1781988640000,-500.0,0.000157,2]
[425847236,1781988640000,-500.0,0.00015799,2]
[425847231,1781988640000,-174.61295032,0.00015799,2]
[425847280,1781988640000,-500.0,0.00016438,2]
[425847234,1781988640000,-500.0,0.00015799,2]
[425847232,1781988640000,-151.0,0.00015799,2]
[425847235,1781988640000,-500.0,0.00015799,2]
[425847237,1781988640000,-506.68294745,0.00015799,2]
[425847238,1781988640000,-602.08194991,0.00015799,2]
[425847239,1781988640000,-172.0,0.000158,2]
[425847240,1781988640000,-479.88462939,0.000159,2]
[425847241,1781988640000,-1747.5230619,0.00015904,2]
[425847243,1781988640000,-160.0,0.0001592,2]
[425847246,1781988640000,-151.0,0.00015974,2]
[425847244,1781988640000,-417.15472785,0.0001592,2]
[425847249,1781988640000,-3451.58409733,0.00016066,2]
[425847242,1781988640000,-160.0,0.0001592,2]
[425847278,1781988640000,-500.0,0.00016438,2]
[425847268,1781988640000,-500.0,0.00016248,2]
[425847287,1781988640000,-514.76051848,0.00016438,2]
[425847313,1781988640000,-500.87248668,0.00016438,2]
[425847318,1781988640000,-151.0,0.00016438,2]
[425847319,1781988640000,-500.0,0.00016438,2]
[425847317,1781988640000,-151.0,0.00016438,2]
[425847322,1781988640000,-502.41022426,0.00016438,2]
[425847325,1781988640000,-503.35524687,0.00016438,2]
[425847321,1781988640000,-515.81482957,0.00016438,2]
[425847320,1781988640000,-500.0,0.00016438,2]
[425847323,1781988640000,-500.0,0.00016438,2]
[425847329,1781988640000,-509.68533424,0.00016438,2]
[425847328,1781988640000,-500.0,0.00016438,2]
[425847324,1781988640000,-500.0,0.00016438,2]
[425847327,1781988640000,-505.37421875,0.00016438,2]
[425847314,1781988640000,-521.97535464,0.00016438,2]
[425847326,1781988640000,-500.0,0.00016438,2]
[425847331,1781988640000,-500.0,0.00016438,2]
[425847332,1781988640000,-506.2674068,0.00016438,2]
[425847334,1781988640000,-500.0,0.00016438,2]
[425847335,1781988640000,-500.0,0.00016438,2]
[425847337,1781988640000,-516.77150837,0.00016438,2]
[425847336,1781988640000,-507.50591601,0.00016438,2]
[425847339,1781988640000,-500.0,0.00016438,2]
[425847286,1781988640000,-500.0,0.00016438,2]
[425847338,1781988640000,-505.0693532,0.00016438,2]
[425847333,1781988640000,-513.46518648,0.00016438,2]
[425847342,1781988640000,-508.21507056,0.00016438,2]
[425847341,1781988640000,-500.0,0.00016438,2]
[425847343,1781988640000,-435.4982027,0.00016438,2]
[425847330,1781988640000,-508.15904112,0.00016438,2]
[425847312,1781988640000,-503.22808352,0.00016438,2]
[425847340,1781988640000,-504.95837758,0.00016438,2]
[425847316,1781988640000,-151.0,0.00016438,2]
[425847310,1781988640000,-252.72978807,0.00016438,2]
[425847284,1781988640000,-507.73647498,0.00016438,2]
[425847282,1781988640000,-500.0,0.00016438,2]
[425847288,1781988640000,-500.0,0.00016438,2]
[425847281,1781988640000,-500.0,0.00016438,2]
[425847289,1781988640000,-505.02561558,0.00016438,2]
[425847291,1781988640000,-500.0,0.00016438,2]
[425847290,1781988640000,-500.0,0.00016438,2]
[425847292,1781988640000,-1000.0,0.00016438,2]
[425847293,1781988640000,-500.0,0.00016438,2]
[425847294,1781988640000,-500.0,0.00016438,2]
[425847295,1781988640000,-523.33970709,0.00016438,2]
[425847302,1781988640000,-505.19931449,0.00016438,2]
[425847279,1781988640000,-500.0,0.00016438,2]
[425847299,1781988640000,-511.2620221,0.00016438,2]
[425847301,1781988640000,-510.1731411,0.00016438,2]
[425847315,1781988640000,-506.1730653,0.00016438,2]
[425847307,1781988640000,-505.34661297,0.00016438,2]
[425847309,1781988640000,-523.93849044,0.00016438,2]
[425847305,1781988640000,-507.7173346,0.00016438,2]
[425847306,1781988640000,-441.66993005,0.00016438,2]